fUST/lending_fUST_20260521
["ID","MTS","AMOUNT","RATE_DAILY","PERIOD"]
[422744346,1779341490000,200.0,0.0001475,120]
[422744687,1779341494000,311829.35219851,6.919e-05,2]
[422744688,1779341551000,200.0,0.0001546,120]
[422744689,1779341610000,200.0,0.00016698,120]
[422744691,1779341755000,168.183311,7.236e-05,72]
[422744693,1779341755000,168.183311,7.236e-05,120]
[422744692,1779341755000,168.183311,7.236e-05,96]
[422744694,1779341759000,153.08776915,0.00013622,90]
[422744695,1779341759000,2.9616851,0.00013622,90]
[422744697,1779341791000,200.0,0.00014138,120]
[422744699,1779341828000,-168.183311,7.236e-05,49]
[422744702,1779341850000,200.0,0.00016953,120]
[422744710,1779341910000,200.0,0.00017627,120]
[422744718,1779342030000,200.0,0.00017582,120]
[422744719,1779342031000,12252.85,0.00013,120]
[422744722,1779342090000,200.0,0.0001319,120]
[422744724,1779342096000,186.14455682,0.0001087,60]
[422744723,1779342096000,203.76142386,0.00012045,72]
[422744725,1779342103000,191.61628603,0.00011761,72]
[422744726,1779342103000,173.12720274,0.00010568,60]
[422744727,1779342111000,154.23524174,0.00011755,72]
[422744734,1779342150000,200.0,0.00015364,120]
[422744748,1779342210000,200.0,0.00017755,120]
[422744753,1779342330000,200.0,0.0001729,120]
[422744770,1779342570000,200.0,0.00016611,120]
[422744772,1779342631000,200.0,0.00017464,120]
[422744821,1779342632000,-151.0,7.236e-05,2]
[422744841,1779342632000,-300.0,7.38e-05,2]
[422744839,1779342632000,-300.0,7.38e-05,2]
[422744846,1779342632000,-300.0,7.38e-05,2]
[422744837,1779342632000,-168.183311,7.236e-05,25]
[422744835,1779342632000,-168.183311,7.236e-05,2]
[422744832,1779342632000,-151.0,7.236e-05,2]
[422744831,1779342632000,-151.0,7.236e-05,2]
[422744829,1779342632000,-151.0,7.236e-05,2]
[422744827,1779342632000,-151.0,7.236e-05,2]
[422744848,1779342632000,-300.0,7.38e-05,2]
[422744825,1779342632000,-151.0,7.236e-05,2]
[422744815,1779342632000,-683.48937311,7.236e-05,2]
[422744819,1779342632000,-151.0,7.236e-05,2]
[422744814,1779342632000,-300.0,7.235e-05,2]
[422744823,1779342632000,-151.0,7.236e-05,2]
[422744812,1779342632000,-151.0,7.235e-05,2]
[422744804,1779342632000,-151.0,7.235e-05,2]
[422744810,1779342632000,-151.0,7.235e-05,2]
[422744808,1779342632000,-151.0,7.235e-05,2]
[422744806,1779342632000,-151.0,7.235e-05,2]
[422744817,1779342632000,-151.0,7.236e-05,2]
[422744844,1779342632000,-300.0,7.38e-05,2]
[422744892,1779342632000,-151.5,8.219e-05,2]
[422744843,1779342632000,-300.0,7.38e-05,2]
[422744850,1779342632000,-300.0,7.38e-05,2]
[422744890,1779342632000,-500.0,8.219e-05,2]
[422744888,1779342632000,-520.52963977,8.219e-05,2]
[422744870,1779342632000,-151.0,7.393e-05,2]
[422744886,1779342632000,-1647.7343,8.219e-05,2]
[422744869,1779342632000,-151.0,7.393e-05,2]
[422744872,1779342632000,-151.0,7.393e-05,2]
[422744884,1779342632000,-450.86432152,8.218e-05,2]
[422744882,1779342632000,-420.0,7.959e-05,2]
[422744878,1779342632000,-151.0,7.751e-05,2]
[422744867,1779342632000,-152.0,7.393e-05,7]
[422744880,1779342632000,-1011.2923249,7.751e-05,2]
[422744874,1779342632000,-151.0,7.393e-05,2]
[422744876,1779342632000,-600.0,7.527e-05,2]
[422744863,1779342632000,-300.0,7.38e-05,2]
[422744859,1779342632000,-300.0,7.38e-05,2]
[422744861,1779342632000,-300.0,7.38e-05,2]
[422744855,1779342632000,-300.0,7.38e-05,2]
[422744857,1779342632000,-300.0,7.38e-05,2]
[422744854,1779342632000,-300.0,7.38e-05,2]
[422744865,1779342632000,-300.0,7.38e-05,2]
[422744852,1779342632000,-300.0,7.38e-05,2]
[422744933,1779342633000,-500.0,8.219e-05,2]
[422744931,1779342633000,-500.0,8.219e-05,2]
[422744924,1779342633000,-500.0,8.219e-05,2]
[422744918,1779342633000,-199.9174912,8.219e-05,2]
[422744935,1779342633000,-500.0,8.219e-05,2]
[422744922,1779342633000,-500.0,8.219e-05,2]
[422744920,1779342633000,-500.0,8.219e-05,2]
[422744939,1779342633000,-500.0,8.219e-05,2]
[422744927,1779342633000,-500.0,8.219e-05,2]
[422744929,1779342633000,-500.0,8.219e-05,2]
[422744926,1779342633000,-500.0,8.219e-05,2]
[422744897,1779342633000,-500.0,8.219e-05,2]
[422744914,1779342633000,-500.0,8.219e-05,2]
[422744912,1779342633000,-500.0,8.219e-05,2]
[422744911,1779342633000,-500.0,8.219e-05,2]
[422744907,1779342633000,-500.0,8.219e-05,2]
[422744909,1779342633000,-500.0,8.219e-05,2]
[422744899,1779342633000,-500.0,8.219e-05,2]
[422744905,1779342633000,-500.0,8.219e-05,2]
[422744901,1779342633000,-500.0,8.219e-05,2]
[422744903,1779342633000,-500.0,8.219e-05,2]
[422744896,1779342633000,-167.55447904,8.219e-05,2]
[422744894,1779342633000,-151.5,8.219e-05,2]
[422744916,1779342633000,-500.0,8.219e-05,2]
[422744937,1779342633000,-500.0,8.219e-05,2]
[422744941,1779342633000,-241.39571198,8.219e-05,2]
[422744945,1779342633000,-500.0,8.219e-05,2]
[422744943,1779342633000,-500.0,8.219e-05,2]
[422744984,1779342633000,-122.18009282,8.219e-05,2]
[422744974,1779342633000,-500.0,8.219e-05,2]
[422744973,1779342633000,-500.0,8.219e-05,2]
[422744972,1779342633000,-154.52114052,8.219e-05,2]
[422744982,1779342633000,-151.5,8.219e-05,2]
[422744976,1779342633000,-500.0,8.219e-05,2]
[422744968,1779342633000,-151.5,8.219e-05,2]
[422744978,1779342633000,-350.8392118,8.219e-05,2]
[422744977,1779342633000,-151.5,8.219e-05,2]
[422744975,1779342633000,-151.5,8.219e-05,2]
[422744980,1779342633000,-237.91796403,8.219e-05,2]
[422744970,1779342633000,-500.0,8.219e-05,2]
[422744965,1779342633000,-293.81616912,8.219e-05,2]
[422744963,1779342633000,-500.0,8.219e-05,2]
[422744961,1779342633000,-151.5,8.219e-05,2]
[422744959,1779342633000,-151.5,8.219e-05,2]
[422744948,1779342633000,-151.5,8.219e-05,2]
[422744950,1779342633000,-154.58480684,8.219e-05,2]
[422744954,1779342633000,-151.5,8.219e-05,2]
[422744946,1779342633000,-151.5,8.219e-05,2]
[422744958,1779342633000,-500.0,8.219e-05,2]
[422744952,1779342633000,-155.3365722,8.219e-05,2]
[422744956,1779342633000,-270.86748186,8.219e-05,2]
[422744967,1779342633000,-500.0,8.219e-05,2]
[422745154,1779342639000,-29.31990718,8.219e-05,2]
[422745155,1779342639000,-278.21873054,8.219e-05,2]
[422745156,1779342639000,-787.82,8.219e-05,2]
[422745157,1779342639000,-500.0,8.219e-05,2]
[422745158,1779342639000,-94.98349746,8.219e-05,2]
[422745183,1779342641000,-468.91921802,8.219e-05,2]
[422745177,1779342641000,-405.01650254,8.219e-05,2]
[422745178,1779342641000,-500.0,8.219e-05,2]
[422745180,1779342641000,-545.42,8.219e-05,2]
[422745179,1779342641000,-500.0,8.219e-05,2]
[422745192,1779342641000,-500.0,8.219e-05,2]
[422745182,1779342641000,-695.05,8.219e-05,2]
[422745181,1779342641000,-4110.24,8.219e-05,2]
[422745193,1779342641000,-500.0,8.219e-05,2]
[422745187,1779342641000,-500.0,8.219e-05,2]
[422745184,1779342641000,-500.0,8.219e-05,2]
[422745185,1779342641000,-862.4,8.219e-05,2]
[422745190,1779342641000,-500.0,8.219e-05,2]
[422745195,1779342641000,-500.0,8.219e-05,2]
[422745197,1779342641000,-500.0,8.219e-05,2]
[422745198,1779342641000,-8.69160025,8.219e-05,2]
[422745194,1779342641000,-500.0,8.219e-05,2]
[422745196,1779342641000,-809.72,8.219e-05,2]
[422745189,1779342641000,-782.5,8.219e-05,2]
[422745186,1779342641000,-500.0,8.219e-05,2]
[422745188,1779342641000,-500.0,8.219e-05,2]
[422745191,1779342641000,-500.0,8.219e-05,2]
[422745236,1779342644000,-1561.37,8.219e-05,2]
[422745232,1779342644000,-1168.0,8.219e-05,2]
[422745222,1779342644000,-500.0,8.219e-05,2]
[422745229,1779342644000,-1168.0,8.219e-05,2]
[422745231,1779342644000,-1168.0,8.219e-05,2]
[422745238,1779342644000,-1168.0,8.219e-05,2]
[422745233,1779342644000,-1168.0,8.219e-05,2]
[422745237,1779342644000,-1168.0,8.219e-05,2]
[422745241,1779342644000,-1168.0,8.219e-05,2]
[422745230,1779342644000,-1168.0,8.219e-05,2]
[422745223,1779342644000,-500.0,8.219e-05,2]
[422745242,1779342644000,-500.0,8.219e-05,2]
[422745234,1779342644000,-1168.0,8.219e-05,2]
[422745240,1779342644000,-1168.0,8.219e-05,2]
[422745235,1779342644000,-1168.0,8.219e-05,2]
[422745219,1779342644000,-500.0,8.219e-05,2]
[422745228,1779342644000,-1168.0,8.219e-05,2]
[422745224,1779342644000,-500.0,8.219e-05,2]
[422745239,1779342644000,-1168.0,8.219e-05,2]
[422745211,1779342644000,-97.3468413,8.219e-05,2]
[422745210,1779342644000,-543.38155845,8.219e-05,2]
[422745214,1779342644000,-218.01905702,8.219e-05,2]
[422745212,1779342644000,-530.7779275,8.219e-05,2]
[422745213,1779342644000,-33.3520725,8.219e-05,2]
[422745225,1779342644000,-1168.0,8.219e-05,2]
[422745216,1779342644000,-500.0,8.219e-05,2]
[422745215,1779342644000,-153.35741092,8.219e-05,2]
[422745218,1779342644000,-500.0,8.219e-05,2]
[422745220,1779342644000,-500.0,8.219e-05,2]
[422745221,1779342644000,-500.0,8.219e-05,2]
[422745227,1779342644000,-318.08650815,8.219e-05,2]
[422745217,1779342644000,-500.0,8.219e-05,2]
[422745226,1779342644000,-583.34108186,8.219e-05,2]
[422745243,1779342644000,-1168.0,8.219e-05,2]
[422745251,1779342644000,-500.0,8.364e-05,2]
[422745252,1779342644000,-500.0,8.364e-05,2]
[422745261,1779342644000,-500.0,8.364e-05,2]
[422745262,1779342644000,-500.0,8.364e-05,2]
[422745264,1779342644000,-6727.5338584,8.366e-05,2]
[422745263,1779342644000,-500.0,8.364e-05,2]
[422745270,1779342644000,-585.97660249,8.393e-05,2]
[422745271,1779342644000,-2858.20757256,8.393e-05,2]
[422745260,1779342644000,-500.0,8.364e-05,2]
[422745277,1779342644000,-575.82370181,8.493e-05,2]
[422745274,1779342644000,-766.48970852,8.407e-05,2]
[422745275,1779342644000,-1647.7343,8.493e-05,2]
[422745273,1779342644000,-161.7158655,8.407e-05,2]
[422745272,1779342644000,-160.0,8.407e-05,2]
[422745244,1779342644000,-1168.0,8.219e-05,2]
[422745276,1779342644000,-500.0,8.493e-05,2]
[422745278,1779342644000,-480.85817826,8.493e-05,2]
[422745267,1779342644000,-6780.73504402,8.393e-05,2]
[422745269,1779342644000,-6634.0094616,8.393e-05,2]
[422745265,1779342644000,-9153.42509705,8.373e-05,2]
[422745254,1779342644000,-500.0,8.364e-05,2]
[422745253,1779342644000,-500.0,8.364e-05,2]
[422745250,1779342644000,-252.06635088,8.364e-05,2]
[422745245,1779342644000,-500.0,8.219e-05,2]
[422745248,1779342644000,-1168.0,8.219e-05,2]
[422745255,1779342644000,-500.0,8.364e-05,2]
[422745268,1779342644000,-424.17702131,8.393e-05,2]
[422745256,1779342644000,-500.0,8.364e-05,2]
[422745247,1779342644000,-500.0,8.219e-05,2]
[422745249,1779342644000,-720.0,8.279e-05,2]
[422745257,1779342644000,-500.0,8.364e-05,2]
[422745258,1779342644000,-500.0,8.364e-05,2]
[422745259,1779342644000,-500.0,8.364e-05,2]
[422745266,1779342644000,-3100.37995035,8.373e-05,2]
[422745246,1779342644000,-1168.0,8.219e-05,2]
[422745330,1779342647000,-500.0,8.493e-05,2]
[422745328,1779342647000,-500.0,8.493e-05,2]
[422745331,1779342647000,-362.51148222,8.493e-05,2]
[422745325,1779342647000,-500.0,8.493e-05,2]
[422745329,1779342647000,-809.72,8.493e-05,2]
[422745327,1779342647000,-500.0,8.493e-05,2]
[422745334,1779342647000,-310.00602426,8.493e-05,2]
[422745348,1779342647000,-4646.67939684,8.654e-05,2]
[422745335,1779342647000,-1561.37,8.493e-05,2]
[422745333,1779342647000,-254.12397574,8.493e-05,2]
[422745347,1779342647000,-700.08854466,8.654e-05,2]
[422745337,1779342647000,-500.0,8.493e-05,2]
[422745349,1779342647000,-7277.5452537,8.654e-05,2]
[422745338,1779342647000,-500.0,8.493e-05,2]
[422745326,1779342647000,-500.0,8.493e-05,2]
[422745332,1779342647000,-286.90851778,8.493e-05,2]
[422745324,1779342647000,-478.02944937,8.493e-05,2]
[422745305,1779342647000,-620.02966378,8.219e-05,2]
[422745321,1779342647000,-500.0,8.493e-05,2]
[422745340,1779342647000,-456.4726815,8.54e-05,2]
[422745307,1779342647000,-704.45640802,8.219e-05,2]
[422745308,1779342647000,-15.03818333,8.219e-05,2]
[422745306,1779342647000,-448.50540865,8.219e-05,2]
[422745309,1779342647000,-306.96182174,8.493e-05,2]
[422745310,1779342647000,-500.0,8.493e-05,2]
[422745311,1779342647000,-500.0,8.493e-05,2]
[422745313,1779342647000,-500.0,8.493e-05,2]
[422745318,1779342647000,-500.0,8.493e-05,2]
[422745312,1779342647000,-500.0,8.493e-05,2]
[422745317,1779342647000,-645.60047368,8.493e-05,2]
[422745315,1779342647000,-4110.24,8.493e-05,2]
[422745314,1779342647000,-545.42,8.493e-05,2]
[422745316,1779342647000,-695.05,8.493e-05,2]
[422745319,1779342647000,-862.4,8.493e-05,2]
[422745322,1779342647000,-782.5,8.493e-05,2]
[422745323,1779342647000,-500.0,8.493e-05,2]
[422745320,1779342647000,-500.0,8.493e-05,2]
[422745339,1779342647000,-456.6225983,8.519e-05,2]
[422745355,1779342647000,-500.0,8.767e-05,2]
[422745342,1779342647000,-456.6225984,8.544e-05,2]
[422745376,1779342647000,-1561.37,8.767e-05,2]
[422745375,1779342647000,-564.13,8.767e-05,2]
[422745364,1779342647000,-500.0,8.767e-05,2]
[422745367,1779342647000,-500.0,8.767e-05,2]
[422745374,1779342647000,-649.42,8.767e-05,2]
[422745368,1779342647000,-500.0,8.767e-05,2]
[422745370,1779342647000,-500.0,8.767e-05,2]
[422745366,1779342647000,-782.5,8.767e-05,2]
[422745369,1779342647000,-500.0,8.767e-05,2]
[422745373,1779342647000,-500.0,8.767e-05,2]
[422745377,1779342647000,-500.0,8.767e-05,2]
[422745381,1779342647000,-796.39562024,8.802e-05,2]
[422745380,1779342647000,-1413.0,8.802e-05,2]
[422745378,1779342647000,-500.0,8.767e-05,2]
[422745379,1779342647000,-500.0,8.767e-05,2]
[422745336,1779342647000,-500.0,8.493e-05,2]
[422745371,1779342647000,-500.0,8.767e-05,2]
[422745365,1779342647000,-500.0,8.767e-05,2]
[422745372,1779342647000,-809.72,8.767e-05,2]
[422745360,1779342647000,-4110.24,8.767e-05,2]
[422745345,1779342647000,-151.0,8.558e-05,2]
[422745359,1779342647000,-545.42,8.767e-05,2]
[422745344,1779342647000,-151.0,8.558e-05,2]
[422745343,1779342647000,-151.0,8.544e-05,2]
[422745346,1779342647000,-3713.03329271,8.654e-05,2]
[422745350,1779342647000,-9495.8598641,8.654e-05,2]
[422745353,1779342647000,-500.0,8.767e-05,2]
[422745354,1779342647000,-787.82,8.767e-05,2]
[422745341,1779342647000,-151.3655693,8.544e-05,2]
[422745351,1779342647000,-587.0,8.754e-05,2]
[422745357,1779342647000,-500.0,8.767e-05,2]
[422745363,1779342647000,-862.4,8.767e-05,2]
[422745361,1779342647000,-695.05,8.767e-05,2]
[422745356,1779342647000,-500.0,8.767e-05,2]
[422745362,1779342647000,-376.6262484,8.767e-05,2]
[422745358,1779342647000,-500.0,8.767e-05,2]
[422745352,1779342647000,-1581.4078,8.767e-05,2]
[422745384,1779342750000,200.0,0.0001676,120]
[422745389,1779342990000,200.0,0.00017143,120]
[422745391,1779343050000,200.0,0.00016573,120]
[422745395,1779343260000,168.183313,7.434e-05,120]
[422745398,1779343291000,-152.0,7.434e-05,2]
[422745399,1779343292000,200.0,0.00017667,120]
[422745401,1779343350000,200.0,0.00016969,120]
[422745402,1779343410000,200.0,0.00017412,120]
[422745406,1779343590000,200.0,0.00016553,120]
[422745407,1779343710000,200.0,0.00016031,120]
[422745463,1779343831000,-300.0,7.419e-05,2]
[422745451,1779343831000,-151.0,7.196e-05,2]
[422745453,1779343831000,-246.91517571,7.419e-05,2]
[422745459,1779343831000,-253.08482429,7.419e-05,2]
[422745461,1779343831000,-386.56333707,7.419e-05,2]
[422745465,1779343831000,-1084.8945823,7.42e-05,2]
[422745483,1779343831000,-305.668248,7.42e-05,2]
[422745469,1779343831000,-2441.01281018,7.42e-05,2]
[422745471,1779343831000,-418.12112243,7.42e-05,2]
[422745473,1779343831000,-2904.36853587,7.42e-05,2]
[422745475,1779343831000,-4339.5783292,7.42e-05,2]
[422745477,1779343831000,-916.2281101,7.42e-05,2]
[422745480,1779343831000,-1456.72154225,7.42e-05,2]
[422745467,1779343831000,-1695.14778484,7.42e-05,2]
[422745749,1779343838000,-152.0,7.668e-05,7]
[422745740,1779343838000,-300.0,7.567e-05,2]
[422745738,1779343838000,-300.0,7.567e-05,2]
[422745744,1779343838000,-300.0,7.567e-05,2]
[422745742,1779343838000,-300.0,7.567e-05,2]
[422745743,1779343838000,-300.0,7.567e-05,2]
[422745745,1779343838000,-300.0,7.567e-05,2]
[422745748,1779343838000,-678.80825525,7.622e-05,2]
[422745741,1779343838000,-300.0,7.567e-05,2]
[422745746,1779343838000,-300.0,7.567e-05,2]
[422745750,1779343838000,-325.9692126,7.696e-05,2]
[422745751,1779343838000,-151.0,7.722e-05,2]
[422745752,1779343838000,-151.0,7.722e-05,2]
[422745754,1779343838000,-188.44066351,8e-05,2]
[422745747,1779343838000,-600.0,7.567e-05,2]
[422745739,1779343838000,-300.0,7.567e-05,2]
[422745729,1779343838000,-16.183313,7.434e-05,2]
[422745733,1779343838000,-300.0,7.567e-05,2]
[422745723,1779343838000,-4942.74218934,7.42e-05,2]
[422745722,1779343838000,-2813.66092255,7.42e-05,2]
[422745724,1779343838000,-1837.84895004,7.42e-05,2]
[422745725,1779343838000,-8204.51527865,7.42e-05,2]
[422745727,1779343838000,-11447.73982652,7.42e-05,2]
[422745728,1779343838000,-179.24543092,7.433e-05,2]
[422745737,1779343838000,-300.0,7.567e-05,2]
[422745730,1779343838000,-200.0,7.438e-05,2]
[422745734,1779343838000,-300.0,7.567e-05,2]
[422745726,1779343838000,-9764.05124071,7.42e-05,2]
[422745735,1779343838000,-300.0,7.567e-05,2]
[422745736,1779343838000,-300.0,7.567e-05,2]
[422745732,1779343838000,-300.0,7.567e-05,2]
[422745731,1779343838000,-201.34,7.438e-05,7]
[422745755,1779343838000,-420.0,8.161e-05,2]
[422745756,1779343838000,-151.0,8.219e-05,2]
[422745783,1779343838000,-500.0,8.219e-05,2]
[422745758,1779343838000,-500.0,8.219e-05,2]
[422745757,1779343838000,-1647.7343,8.219e-05,2]
[422745776,1779343838000,-39.64511223,8.219e-05,2]
[422745777,1779343838000,-528.59488777,8.219e-05,2]
[422745779,1779343838000,-708.51,8.219e-05,2]
[422745780,1779343838000,-500.0,8.219e-05,2]
[422745782,1779343838000,-500.0,8.219e-05,2]
[422745773,1779343838000,-62.25436261,8.219e-05,2]
[422745781,1779343838000,-2687.36,8.219e-05,2]
[422745785,1779343838000,-620.02966378,8.219e-05,2]
[422745788,1779343838000,-160.0,8.407e-05,2]
[422745787,1779343838000,-720.0,8.324e-05,2]
[422745786,1779343838000,-527.24,8.219e-05,2]
[422745790,1779343838000,-580.36277678,8.407e-05,2]
[422745789,1779343838000,-161.7158655,8.407e-05,2]
[422745784,1779343838000,-261.77913119,8.219e-05,2]
[422745778,1779343838000,-500.0,8.219e-05,2]
[422745775,1779343838000,-500.0,8.219e-05,2]
[422745772,1779343838000,-479.87342705,8.219e-05,2]
[422745763,1779343838000,-500.0,8.219e-05,2]
[422745764,1779343838000,-500.0,8.219e-05,2]
[422745761,1779343838000,-500.0,8.219e-05,2]
[422745762,1779343838000,-3596.46,8.219e-05,2]
[422745774,1779343838000,-437.74563739,8.219e-05,2]
[422745759,1779343838000,-500.0,8.219e-05,2]
[422745753,1779343838000,-325.9692126,7.722e-05,2]
[422745760,1779343838000,-689.34,8.219e-05,2]
[422745766,1779343838000,-754.6,8.219e-05,2]
[422745769,1779343838000,-500.0,8.219e-05,2]
[422745768,1779343838000,-500.0,8.219e-05,2]
[422745770,1779343838000,-500.0,8.219e-05,2]
[422745771,1779343838000,-684.69,8.219e-05,2]
[422745767,1779343838000,-500.0,8.219e-05,2]
[422745765,1779343838000,-608.17,8.219e-05,2]
[422745801,1779343840000,-556.00925131,7.426e-05,2]
[422745802,1779343840000,-122.79900394,7.426e-05,2]
[422745803,1779343840000,-186.12693174,8.407e-05,2]
[422745806,1779343840000,-500.0,8.491e-05,2]
[422745804,1779343840000,-151.39952329,8.45e-05,2]
[422745809,1779343840000,-500.0,8.491e-05,2]
[422745805,1779343840000,-399.29829335,8.491e-05,2]
[422745808,1779343840000,-500.0,8.491e-05,2]
[422745812,1779343840000,-76.58040473,8.491e-05,2]
[422745813,1779343840000,-379.72335834,8.491e-05,2]
[422745807,1779343840000,-500.0,8.491e-05,2]
[422745811,1779343840000,-500.0,8.491e-05,2]
[422745810,1779343840000,-500.0,8.491e-05,2]
[422745837,1779343843000,-500.0,8.491e-05,2]
[422745839,1779343843000,-111.73539055,8.491e-05,2]
[422745825,1779343843000,-203.60187919,8.219e-05,2]
[422745824,1779343843000,-2575.39,8.219e-05,2]
[422745826,1779343843000,-296.39812081,8.219e-05,2]
[422745829,1779343843000,-477.79703731,8.491e-05,2]
[422745832,1779343843000,-500.0,8.491e-05,2]
[422745830,1779343843000,-22.20296269,8.491e-05,2]
[422745827,1779343843000,-500.0,8.219e-05,2]
[422745831,1779343843000,-500.0,8.491e-05,2]
[422745833,1779343843000,-500.0,8.491e-05,2]
[422745835,1779343843000,-500.0,8.491e-05,2]
[422745834,1779343843000,-500.0,8.491e-05,2]
[422745836,1779343843000,-500.0,8.491e-05,2]
[422745838,1779343843000,-500.0,8.491e-05,2]
[422745828,1779343843000,-43.69623693,8.491e-05,2]
[422745852,1779343846000,-500.0,8.493e-05,2]
[422745848,1779343846000,-500.0,8.491e-05,2]
[422745847,1779343846000,-388.26460945,8.491e-05,2]
[422745849,1779343846000,-500.0,8.491e-05,2]
[422745854,1779343846000,-689.34,8.493e-05,2]
[422745850,1779343846000,-341.56335928,8.491e-05,2]
[422745853,1779343846000,-500.0,8.493e-05,2]
[422745855,1779343846000,-500.0,8.493e-05,2]
[422745858,1779343846000,-500.0,8.493e-05,2]
[422745856,1779343846000,-3596.46,8.493e-05,2]
[422745851,1779343846000,-500.0,8.491e-05,2]
[422745857,1779343846000,-500.0,8.493e-05,2]
[422745859,1779343846000,-575.19725964,8.493e-05,2]
[422745862,1779343890000,200.0,0.00016586,120]
[422745864,1779343950000,200.0,0.00016035,120]
[422745865,1779344010000,200.0,0.00017391,120]
[422745867,1779344070000,200.0,0.00017072,120]
[422745873,1779344137000,5000.0,7e-05,2]
[422745874,1779344145000,5000.0,7e-05,2]
[422745875,1779344153000,5000.0,7e-05,2]
[422745876,1779344176000,5000.0,7e-05,2]
[422745877,1779344190000,200.0,0.00014009,120]
[422745878,1779344193000,237.30923106,0.00017585,120]
[422745880,1779344197000,5000.0,7e-05,2]
[422745881,1779344200000,212.77578425,0.00017465,120]
[422745882,1779344208000,181.48629423,0.00017465,120]
[422745883,1779344219000,5000.0,7e-05,2]
[422745884,1779344241000,5000.0,7e-05,2]
[422745885,1779344250000,200.0,0.0001472,120]
[422745886,1779344262000,5000.0,7e-05,2]
[422745887,1779344283000,5000.0,7e-05,2]
[422745888,1779344304000,5000.0,7e-05,2]
[422745889,1779344306000,294.5375518,3.236e-05,2]
[422745892,1779344326000,5000.0,7e-05,2]
[422745893,1779344348000,5000.0,7e-05,2]
[422745894,1779344356000,5000.0,7e-05,2]
[422745895,1779344364000,5000.0,7e-05,2]
[422745896,1779344370000,200.0,0.00013555,120]
[422745897,1779344388000,5000.0,7e-05,2]
[422745900,1779344410000,5000.0,7e-05,2]
[422745901,1779344432000,5000.0,7e-05,2]
[422745902,1779344454000,5000.0,7e-05,2]
[422745904,1779344475000,5000.0,7e-05,2]
[422745906,1779344497000,5000.0,7e-05,2]
[422745907,1779344518000,12855.31525941,0.000178,120]
[422745908,1779344519000,5000.0,7e-05,2]
[422745909,1779344540000,5000.0,7e-05,2]
[422745910,1779344550000,200.0,0.00011384,120]
[422745911,1779344562000,5000.0,7e-05,2]
[422745914,1779344570000,5000.0,7e-05,2]
[422745915,1779344586000,5000.0,7e-05,2]
[422745916,1779344593000,5000.0,7e-05,2]
[422745917,1779344608000,5000.0,7e-05,2]
[422745918,1779344610000,200.0,0.00012569,120]
[422745919,1779344616000,5000.0,7e-05,2]
[422745920,1779344631000,5000.0,7e-05,2]
[422745921,1779344639000,5000.0,7e-05,2]
[422745923,1779344654000,5000.0,7e-05,2]
[422745924,1779344662000,5000.0,7e-05,2]
[422745925,1779344670000,200.0,0.00016088,120]
[422745926,1779344676000,5000.0,7e-05,2]
[422745927,1779344684000,5000.0,7e-05,2]
[422745928,1779344699000,5000.0,7e-05,2]
[422745931,1779344711000,5000.0,7e-05,2]
[422745932,1779344726000,5000.0,7e-05,2]
[422745933,1779344730000,200.0,0.00010771,120]
[422745934,1779344734000,5000.0,7e-05,2]
[422745935,1779344749000,5000.0,7e-05,2]
[422745936,1779344757000,5000.0,7e-05,2]
[422745937,1779344764000,5000.0,7e-05,2]
[422745938,1779344780000,5000.0,7e-05,2]
[422745939,1779344788000,5000.0,7e-05,2]
[422745940,1779344790000,200.0,0.00010786,120]
[422745941,1779344802000,5000.0,7e-05,2]
[422745942,1779344810000,5000.0,7e-05,2]
[422745943,1779344825000,5000.0,7e-05,2]
[422745944,1779344833000,5000.0,7e-05,2]
[422745946,1779344848000,5000.0,7e-05,2]
[422745945,1779344848000,1776.31,0.00017808,120]
[422745947,1779344850000,200.0,0.00016875,120]